fUST/lending_fUST_20250602
["ID","MTS","AMOUNT","RATE_DAILY","PERIOD"]
[363674210,1748809840634,-500.0,0.00017037,2]
[363674211,1748809840643,-500.0,0.00017037,2]
[363674212,1748809840652,-560.12847907,0.00017037,2]
[363674213,1748809840661,-500.0,0.00017037,2]
[363674214,1748809840670,-500.0,0.00017037,2]
[363674215,1748809840679,-573.09247553,0.00017037,2]
[363674216,1748809840688,-500.0,0.00017037,2]
[363674217,1748809840697,-9959.28428986,0.00017082,2]
[363674218,1748809840705,-171.19974362,0.00017108,2]
[363674219,1748809840714,-500.0,0.00017108,2]
[363674220,1748809840723,-500.0,0.00017123,2]
[363674221,1748809840733,-500.0,0.00017123,2]
[363674222,1748809840742,-500.0,0.00017123,2]
[363674223,1748809840751,-500.0,0.00017123,2]
[363674224,1748809840760,-481.40515729,0.0001717,2]
[363674225,1748809840769,-500.0,0.0001717,2]
[363674226,1748809840778,-500.0,0.00017172,2]
[363674227,1748809840787,-500.0,0.00017172,2]
[363674228,1748809840796,-432.93097749,0.00017172,2]
[363674229,1748809840805,-500.0,0.00017172,2]
[363674230,1748809840814,-152.90414247,0.00017172,2]
[363674231,1748809840822,-500.0,0.00017205,2]
[363674232,1748809840831,-500.0,0.00017205,2]
[363674233,1748809840840,-500.0,0.00017205,2]
[363674234,1748809840849,-500.0,0.00017205,2]
[363674235,1748809840858,-500.0,0.00017205,2]
[363674236,1748809840867,-500.0,0.00017218,2]
[363674237,1748809840876,-500.0,0.00017218,2]
[363674238,1748809840885,-430.0,0.0001726,2]
[363674239,1748809840895,-372.11,0.0001726,2]
[363674240,1748809840904,-525.61774497,0.0001726,2]
[363674241,1748809840913,-272.37695185,0.0001726,2]
[363674242,1748809840922,-542.62,0.0001726,2]
[363674243,1748809840931,-430.0,0.0001726,2]
[363674245,1748809840941,-430.0,0.0001726,2]
[363674247,1748809840951,-430.0,0.0001726,2]
[363674249,1748809840960,-430.0,0.0001726,2]
[363674251,1748809840969,-636.16,0.0001726,2]
[363674253,1748809840978,-430.0,0.0001726,2]
[363674255,1748809840988,-430.0,0.0001726,2]
[363674257,1748809840997,-430.0,0.0001726,2]
[363674259,1748809841006,-430.0,0.0001726,2]
[363674261,1748809841016,-430.0,0.0001726,2]
[363674263,1748809841025,-259.87,0.0001726,2]
[363674265,1748809841035,-333.96,0.0001726,2]
[363674267,1748809841045,-430.0,0.0001726,2]
[363674269,1748809841054,-430.0,0.0001726,2]
[363674271,1748809841064,-275.70767632,0.0001726,2]
[363674273,1748809841073,-398.81,0.0001726,2]
[363674275,1748809841083,-430.0,0.0001726,2]
[363674277,1748809841092,-454.18,0.0001726,2]
[363674279,1748809841101,-430.0,0.0001726,2]
[363674281,1748809841111,-430.0,0.0001726,2]
[363674283,1748809841121,-407.78,0.0001726,2]
[363674285,1748809841130,-641.27,0.0001726,2]
[363674287,1748809841139,-430.0,0.0001726,2]
[363674289,1748809841148,-434.69,0.0001726,2]
[363674291,1748809841158,-430.0,0.0001726,2]
[363674293,1748809841168,-457.41,0.0001726,2]
[363674295,1748809841177,-430.0,0.0001726,2]
[363674297,1748809841187,-208.73123096,0.00017268,2]
[363674299,1748809841197,-560.17927494,0.00017434,2]
[363674301,1748809841207,-420.0,0.00017492,2]
[363674304,1748809841217,-216.4,0.00017534,2]
[363674305,1748809841226,-481.63,0.00017534,2]
[363674307,1748809841235,-430.0,0.00017534,2]
[363674310,1748809841244,-430.0,0.00017534,2]
[363674311,1748809841253,-430.0,0.00017534,2]
[363674313,1748809841266,-636.16,0.00017534,2]
[363674315,1748809841275,-430.0,0.00017534,2]
[363674317,1748809841285,-371.84506335,0.00017534,2]
[363674320,1748809841295,-430.0,0.00017534,2]
[363674322,1748809841305,-430.0,0.00017534,2]
[363674323,1748809841314,-430.0,0.00017534,2]
[363674325,1748809841323,-430.0,0.00017534,2]
[363674328,1748809841332,-430.0,0.00017534,2]
[363674330,1748809841342,-430.0,0.00017534,2]
[363674332,1748809841351,-454.18,0.00017534,2]
[363674334,1748809841361,-430.0,0.00017534,2]
[363674336,1748809841371,-430.0,0.00017534,2]
[363674338,1748809841382,-641.27,0.00017534,2]
[363674340,1748809841392,-430.0,0.00017534,2]
[363674342,1748809841402,-434.69,0.00017534,2]
[363674344,1748809841411,-430.0,0.00017534,2]
[363674346,1748809841420,-457.41,0.00017534,2]
[363674348,1748809841430,-430.0,0.00017534,2]
[363674350,1748809841440,-500.0,0.00017585,2]
[363674352,1748809841449,-506.02040442,0.00017585,2]
[363674354,1748809841460,-208.73123096,0.00017637,2]
[363674356,1748809841470,-294.87457534,0.00017656,2]
[363674358,1748809841479,-1000.0,0.00017671,2]
[363674360,1748809841489,-500.0,0.00017718,2]
[363674362,1748809841499,-935.52355721,0.0001772,2]
[363674364,1748809841509,-510.48768727,0.0001772,2]
[363674366,1748809841519,-500.0,0.00017753,2]
[363674368,1748809841528,-500.0,0.00017753,2]
[363674370,1748809841538,-1000.0,0.00017766,2]
[363674372,1748809841547,-430.0,0.00017808,2]
[363674374,1748809841557,-430.0,0.00017808,2]
[363674376,1748809841567,-430.0,0.00017808,2]
[363674378,1748809841578,-636.16,0.00017808,2]
[363674380,1748809841588,-218.13,0.00017808,2]
[363674382,1748809841597,-430.0,0.00017808,2]
[363674384,1748809841606,-430.0,0.00017808,2]
[363674386,1748809841615,-430.0,0.00017808,2]
[363674388,1748809841624,-430.0,0.00017808,2]
[363674390,1748809841633,-430.0,0.00017808,2]
[363674392,1748809841643,-430.0,0.00017808,2]
[363674394,1748809841652,-454.18,0.00017808,2]
[363674396,1748809841661,-430.0,0.00017808,2]
[363674398,1748809841671,-430.0,0.00017808,2]
[363674400,1748809841680,-641.27,0.00017808,2]
[363674402,1748809841689,-430.0,0.00017808,2]
[363674404,1748809841698,-434.69,0.00017808,2]
[363674406,1748809841707,-430.0,0.00017808,2]
[363674408,1748809841717,-457.41,0.00017808,2]
[363674410,1748809841726,-430.0,0.00017808,2]
[363674413,1748809841736,-500.0,0.00017978,2]
[363674415,1748809841745,-182.95,0.00018,2]
[363674417,1748809841754,-208.73123096,0.00018005,2]
[363674418,1748809841763,-1651.64473977,0.00018062,2]
[363674420,1748809841773,-430.0,0.00018082,2]
[363674422,1748809841783,-430.0,0.00018082,2]
[363674425,1748809841793,-186.58105305,0.00018082,2]
[363674427,1748809841802,-636.16,0.00018082,2]
[363674429,1748809841812,-430.0,0.00018082,2]
[363674431,1748809841821,-430.0,0.00018082,2]
[363674433,1748809841830,-330.28,0.00018082,2]
[363674435,1748809841839,-430.0,0.00018082,2]
[363674437,1748809841849,-430.0,0.00018082,2]
[363674439,1748809841858,-430.0,0.00018082,2]
[363674441,1748809841867,-454.18,0.00018082,2]
[363674443,1748809841876,-430.0,0.00018082,2]
[363674445,1748809841887,-430.0,0.00018082,2]
[363674447,1748809841897,-641.27,0.00018082,2]
[363674449,1748809841907,-430.0,0.00018082,2]
[363674451,1748809841917,-434.69,0.00018082,2]
[363674453,1748809841926,-430.0,0.00018082,2]
[363674455,1748809841936,-457.41,0.00018082,2]
[363674457,1748809841946,-430.0,0.00018082,2]
[363674459,1748809841956,-1430.44,0.00018127,2]
[363674461,1748809841965,-842.5625,0.00018141,2]
[363674474,1748809842077,-160.0,0.00018141,2]
[363674476,1748809842087,-212.80060342,0.00018143,2]
[363674478,1748809842096,-12666.87825251,0.00018143,2]
[363674480,1748809842105,-160.0,0.00018143,2]
[363674482,1748809842115,-423.51412927,0.00018143,2]
[363674484,1748809842124,-229.3709046,0.00018143,2]
[363674486,1748809842134,-160.0,0.00018143,2]
[363674488,1748809842143,-500.0,0.00018219,2]
[363674490,1748809842153,-1130.96,0.00018336,3]
[363674492,1748809842164,-565.48,0.00018336,3]
[363674494,1748809842175,-4523.82,0.00018346,3]
[363674496,1748809842184,-2261.92,0.00018346,3]
[363674498,1748809842193,-12666.87825251,0.00018346,3]
[363674500,1748809842203,-212.80060342,0.00018346,3]
[363674502,1748809842213,-389.52153615,0.0001835,2]
[363674504,1748809842223,-430.0,0.00018356,2]
[363674506,1748809842232,-430.0,0.00018356,2]
[363674508,1748809842241,-636.16,0.00018356,2]
[363674510,1748809842250,-430.0,0.00018356,2]
[363674512,1748809842260,-430.0,0.00018356,2]
[363674514,1748809842274,-430.0,0.00018356,2]
[363674516,1748809842283,-430.0,0.00018356,2]
[363674518,1748809842293,-430.0,0.00018356,2]
[363674520,1748809842302,-454.18,0.00018356,2]
[363674522,1748809842312,-430.0,0.00018356,2]
[363674524,1748809842322,-430.0,0.00018356,2]
[363674526,1748809842331,-641.27,0.00018356,2]
[363674528,1748809842342,-430.0,0.00018356,2]
[363674530,1748809842352,-434.69,0.00018356,2]
[363674532,1748809842361,-430.0,0.00018356,2]
[363674534,1748809842371,-457.41,0.00018356,2]
[363674536,1748809842381,-430.0,0.00018356,2]
[363674538,1748809842391,-208.73123096,0.00018374,2]
[363674540,1748809842401,-500.0,0.00018376,2]
[363674542,1748809842412,-500.0,0.00018376,2]
[363674544,1748809842422,-500.0,0.00018376,2]
[363674546,1748809842432,-500.0,0.00018526,2]
[363674548,1748809842441,-430.0,0.0001863,2]
[363674550,1748809842451,-430.0,0.0001863,2]
[363674552,1748809842460,-636.16,0.0001863,2]
[363674554,1748809842469,-430.0,0.0001863,2]
[363674556,1748809842479,-430.0,0.0001863,2]
[363674558,1748809842489,-430.0,0.0001863,2]
[363674560,1748809842502,-430.0,0.0001863,2]
[363674562,1748809842512,-430.0,0.0001863,2]
[363674564,1748809842522,-454.18,0.0001863,2]
[363674566,1748809842531,-430.0,0.0001863,2]
[363674568,1748809842541,-430.0,0.0001863,2]
[363674570,1748809842551,-641.27,0.0001863,2]
[363674573,1748809842562,-430.0,0.0001863,2]
[363674575,1748809842573,-434.69,0.0001863,2]
[363674577,1748809842584,-430.0,0.0001863,2]
[363674579,1748809842595,-457.41,0.0001863,2]
[363674581,1748809842605,-430.0,0.0001863,2]
[363674583,1748809842616,-389.52153615,0.0001867,2]
[363674585,1748809842625,-208.73123096,0.00018742,2]
[363674587,1748809842635,-560.17927493,0.00018851,2]
[363674589,1748809842644,-422.44675168,0.00018904,2]
[363674591,1748809842654,-291.91494419,0.00018904,2]
[363674593,1748809842665,-636.16,0.00018904,2]
[363674595,1748809842674,-430.0,0.00018904,2]
[363674597,1748809842684,-430.0,0.00018904,2]
[363674599,1748809842693,-430.0,0.00018904,2]
[363674601,1748809842703,-430.0,0.00018904,2]
[363674603,1748809842712,-430.0,0.00018904,2]
[363674605,1748809842722,-454.18,0.00018904,2]
[363674607,1748809842732,-430.0,0.00018904,2]
[363674609,1748809842742,-430.0,0.00018904,2]
[363674611,1748809842751,-641.27,0.00018904,2]
[363674613,1748809842761,-430.0,0.00018904,2]
[363674615,1748809842771,-434.69,0.00018904,2]
[363674617,1748809842780,-430.0,0.00018904,2]
[363674619,1748809842790,-457.41,0.00018904,2]
[363674621,1748809842799,-430.0,0.00018904,2]
[363674623,1748809842809,-500.0,0.00018924,2]
[363674625,1748809842819,-500.0,0.00018924,2]
[363674627,1748809842828,-500.0,0.00018924,2]
[363674629,1748809842837,-208.73123096,0.00019111,2]
[363674631,1748809842847,-587.0,0.00019125,2]
[363674633,1748809842857,-636.16,0.00019178,2]
[363674635,1748809842867,-430.0,0.00019178,2]
[363674637,1748809842877,-430.0,0.00019178,2]
[363674639,1748809842887,-430.0,0.00019178,2]
[363674641,1748809842896,-430.0,0.00019178,2]
[363674643,1748809842906,-430.0,0.00019178,2]
[363674645,1748809842917,-454.18,0.00019178,2]
[363674647,1748809842926,-430.0,0.00019178,2]
[363674649,1748809842936,-430.0,0.00019178,2]
[363674651,1748809842945,-641.27,0.00019178,2]
[363674653,1748809842956,-430.0,0.00019178,2]
[363674655,1748809842966,-434.69,0.00019178,2]
[363674657,1748809842975,-430.0,0.00019178,2]
[363674659,1748809842985,-457.41,0.00019178,2]
[363674661,1748809842994,-284.74819048,0.00019178,2]
[363674663,1748809843004,-211.61,0.00019178,2]
[363674665,1748809843013,-173.899305,0.00019178,2]
[363674667,1748809843023,-636.16,0.00019452,2]
[363674669,1748809843032,-430.0,0.00019452,2]
[363674671,1748809843041,-430.0,0.00019452,2]
[363674672,1748809843050,-430.0,0.00019452,2]
[363674674,1748809843059,-430.0,0.00019452,2]
[363674676,1748809843069,-417.60384318,0.00019452,2]
[363674678,1748809843079,-454.18,0.00019452,2]
[363674680,1748809843088,-430.0,0.00019452,2]
[363674683,1748809843098,-430.0,0.00019452,2]
[363674684,1748809843108,-641.27,0.00019452,2]
[363674686,1748809843117,-430.0,0.00019452,2]
[363674689,1748809843127,-434.69,0.00019452,2]
[363674690,1748809843137,-430.0,0.00019452,2]
[363674693,1748809843146,-457.41,0.00019452,2]
[363674694,1748809843156,-208.73123096,0.00019479,2]
[363674696,1748809843166,-4465.39443153,0.000195,2]
[363674698,1748809843176,-428.998,0.00019579,2]
[363674700,1748809843186,-178.59002559,0.00019579,2]
[363674702,1748809843195,-151.0,0.000196,2]
[363674704,1748809843204,-636.16,0.00019726,2]
[363674706,1748809843214,-430.0,0.00019726,2]
[363674708,1748809843223,-430.0,0.00019726,2]
[363674710,1748809843233,-430.0,0.00019726,2]
[363674712,1748809843242,-430.0,0.00019726,2]
[363674714,1748809843252,-454.18,0.00019726,2]
[363674716,1748809843262,-430.0,0.00019726,2]
[363674718,1748809843275,-430.0,0.00019726,2]
[363674720,1748809843284,-641.27,0.00019726,2]
[363674722,1748809843294,-430.0,0.00019726,2]
[363674724,1748809843303,-434.69,0.00019726,2]
[363674726,1748809843314,-430.0,0.00019726,2]
[363674728,1748809843324,-457.41,0.00019726,2]
[363674730,1748809843336,-2860.88,0.00019775,2]
[363674733,1748809843351,-649.21402904,0.000198,2]
[363674735,1748809843364,-208.73123096,0.00019847,2]
[363674737,1748809843377,-168.73407253,0.00019855,2]
[363674740,1748809843391,-500.16902464,0.00019855,2]
[363674742,1748809843402,-500.0,0.00019915,2]
[363674744,1748809843415,-500.42226515,0.00019973,2]
[363674746,1748809843428,-500.0,0.00019973,2]
[363674748,1748809843441,-501.5349435,0.00019973,2]
[363674751,1748809843454,-478.90915414,0.00019973,2]
[363674753,1748809843467,-500.0,0.00019973,2]
[363674755,1748809843480,-500.0,0.00019973,2]
[363674758,1748809843492,-500.0,0.00019973,2]
[363674760,1748809843504,-625.86189273,0.00019999,2]
[363674762,1748809843517,-500.0,0.00019999,2]
[363674764,1748809843530,-500.0,0.00019999,2]
[363674767,1748809843542,-625.86189273,0.00019999,2]
[363674769,1748809843555,-625.86189273,0.00019999,2]
[363674771,1748809843567,-500.0,0.00019999,2]
[363674773,1748809843579,-625.86189273,0.00019999,2]
[363674776,1748809843591,-625.86189273,0.00019999,2]
[363674778,1748809843602,-500.0,0.00019999,2]
[363674780,1748809843614,-625.86189273,0.00019999,2]
[363674782,1748809843627,-500.0,0.00019999,2]
[363674784,1748809843639,-625.86189273,0.00019999,2]
[363674787,1748809843650,-500.0,0.00019999,2]
[363674789,1748809843662,-625.86189273,0.00019999,2]
[363674791,1748809843672,-500.0,0.00019999,2]
[363674793,1748809843683,-625.86189273,0.00019999,2]
[363674795,1748809843696,-244.39267127,0.00019999,2]
[363674797,1748809843707,-625.86189273,0.00019999,2]
[363674800,1748809843719,-625.86189273,0.00019999,2]
[363674802,1748809843732,-500.0,0.00019999,2]
[363674804,1748809843745,-625.86189273,0.00019999,2]
[363674807,1748809843757,-625.86189273,0.00019999,2]
[363674809,1748809843769,-500.0,0.00019999,2]
[363674811,1748809843781,-625.86189273,0.00019999,2]
[363674814,1748809843794,-500.0,0.00019999,2]
[363674816,1748809843806,-625.86189273,0.00019999,2]
[363674818,1748809843819,-625.86189273,0.00019999,2]
[363674820,1748809843832,-625.86189273,0.00019999,2]
[363674823,1748809843844,-625.86189273,0.00019999,2]
[363674825,1748809843855,-625.86189273,0.00019999,2]
[363674827,1748809843865,-500.0,0.00019999,2]
[363674829,1748809843875,-500.0,0.00019999,2]
[363674831,1748809843886,-500.0,0.00019999,2]
[363674833,1748809843899,-625.86189273,0.00019999,2]
[363674836,1748809843912,-625.86189273,0.00019999,2]
[363674838,1748809843926,-625.86189273,0.00019999,2]
[363674840,1748809843938,-625.86189273,0.00019999,2]
[363674843,1748809843949,-633.6851664,0.00019999,2]
[363674844,1748809843960,-633.6851664,0.00019999,2]
[363674845,1748809843971,-633.6851664,0.00019999,2]
[363674846,1748809843981,-633.6851664,0.00019999,2]
[363674847,1748809843992,-633.6851664,0.00019999,2]
[363674848,1748809844003,-633.6851664,0.00019999,2]
[363674849,1748809844015,-633.6851664,0.00019999,2]
[363674850,1748809844028,-633.6851664,0.00019999,2]
[363674851,1748809844039,-500.0,0.00019999,2]
[363674852,1748809844049,-500.0,0.00019999,2]
[363674853,1748809844060,-598.61366648,0.00019999,2]
[363674854,1748809844070,-173603.37240625,0.0002,2]
[363674855,1748809844081,-636.16,0.0002,2]
[363674856,1748809844091,-430.0,0.0002,2]
[363674857,1748809844102,-430.0,0.0002,2]
[363674858,1748809844113,-430.0,0.0002,2]
[363674859,1748809844124,-430.0,0.0002,2]
[363674860,1748809844136,-57079.58379063,0.0002,2]
[363674910,1748809844618,-0.00261886,0.00016438,2]
[363674917,1748809844669,-327.31458302,0.00016438,2]
[363674919,1748809844681,-430.0,0.00016438,2]
[363674921,1748809844693,-80736.99029298,0.0002,2]
[363677622,1748810071401,63404.4489543,0.00015481,2]
[363677626,1748810685090,6504.7732684,0.00015401,2]
[363677627,1748810730871,266.85424,0.00013699,2]
[363677631,1748810921032,24900.0,0.00015391,2]
[363677632,1748810925668,-217.99242621,0.00015938,2]
[363677639,1748810970701,-273.67816743,0.00015779,2]
[363677640,1748810971126,-4726.32183257,0.00015779,2]
[363677641,1748810971147,-184.52959411,0.00015999,2]
[363677642,1748810971168,-1736.11,0.00016099,2]
[363677643,1748810971190,-887.665687,0.00016229,2]
[363677644,1748810971210,-161.10705585,0.00016334,2]
[363677645,1748810971232,-144.79694043,0.0001643,2]
[363677646,1748811003183,217.99242621,0.000142,2]
[363677648,1748811006672,878.064158,0.00015434,2]
[363677663,1748811032775,-5000.0,0.00016266,2]
[363677664,1748811032785,-398.60374692,0.0001643,2]
[363677665,1748811032834,-801.39625308,0.0001643,2]
[363677666,1748811032844,-98.76090222,0.0001643,2]
[363677667,1748811032856,-201.23909778,0.0001643,2]
[363677668,1748811032866,-300.0,0.00016431,2]
[363677669,1748811032875,-300.0,0.00016431,2]
[363677670,1748811032885,-260.78248125,0.00016431,2]
[363677673,1748811038555,-39.21751875,0.00016431,2]
[363677674,1748811038565,-300.0,0.00016431,2]
[363677675,1748811038574,-300.0,0.00016431,2]
[363677676,1748811038584,-33913.45897385,0.00016432,2]
[363677677,1748811038594,-393.70641946,0.00016433,2]
[363677678,1748811038604,-165.24554076,0.00016433,2]
[363677679,1748811038613,-178.32839605,0.00016433,2]
[363677680,1748811038622,-500.0,0.00016433,2]
[363677681,1748811038632,-500.0,0.00016433,2]
[363677682,1748811038655,-242.2288887,0.00016433,2]
[363677683,1748811038666,-500.0,0.00016433,2]
[363677684,1748811038676,-500.0,0.00016433,2]
[363677685,1748811038691,-500.0,0.00016433,2]
[363677686,1748811038702,-500.0,0.00016433,2]
[363677687,1748811038712,-500.0,0.00016433,2]
[363677688,1748811038723,-500.0,0.00016433,2]
[363677689,1748811038733,-500.0,0.00016433,2]
[363677690,1748811038743,-500.0,0.00016433,2]
[363677691,1748811038754,-500.0,0.00016433,2]
[363677692,1748811038765,-500.0,0.00016433,2]
[363677693,1748811038775,-500.0,0.00016433,2]
[363677694,1748811038784,-500.0,0.00016433,2]
[363677695,1748811038794,-164.05091566,0.00016433,2]
[363677696,1748811038804,-500.0,0.00016433,2]
[363677697,1748811038815,-500.0,0.00016433,2]
[363677698,1748811038825,-500.0,0.00016433,2]
[363677699,1748811038835,-500.0,0.00016433,2]
[363677700,1748811038845,-500.0,0.00016433,2]
[363677701,1748811038855,-500.0,0.00016433,2]
[363677702,1748811038865,-500.0,0.00016433,2]
[363677703,1748811038875,-500.0,0.00016433,2]
[363677704,1748811038885,-500.0,0.00016433,2]
[363677705,1748811038895,-500.0,0.00016433,2]
[363677706,1748811038906,-500.0,0.00016433,2]
[363677707,1748811038916,-500.0,0.00016433,2]
[363677708,1748811038926,-500.0,0.00016433,2]
[363677709,1748811038936,-500.0,0.00016433,2]
[363677710,1748811038946,-500.0,0.00016433,2]
[363677711,1748811038955,-500.0,0.00016433,2]
[363677712,1748811038965,-500.0,0.00016433,2]
[363677713,1748811038976,-573.58101099,0.00016433,2]
[363677714,1748811038986,-500.0,0.00016433,2]
[363677715,1748811038996,-500.0,0.00016433,2]
[363677716,1748811039007,-500.0,0.00016433,2]
[363677717,1748811039017,-500.0,0.00016433,2]
[363677718,1748811039028,-500.0,0.00016433,2]
[363677719,1748811039038,-500.0,0.00016433,2]
[363677720,1748811039049,-500.0,0.00016433,2]
[363677721,1748811039059,-500.0,0.00016433,2]
[363677722,1748811039069,-500.0,0.00016433,2]
[363677723,1748811039079,-500.0,0.00016433,2]
[363677724,1748811039089,-500.0,0.00016433,2]
[363677725,1748811039100,-500.0,0.00016433,2]
[363677726,1748811039110,-500.0,0.00016433,2]
[363677727,1748811039120,-500.0,0.00016433,2]
[363677728,1748811039130,-500.0,0.00016433,2]
[363677729,1748811039140,-309.45230082,0.00016433,2]
[363677730,1748811039150,-500.0,0.00016433,2]
[363677731,1748811039161,-500.0,0.00016433,2]
[363677732,1748811039171,-500.0,0.00016433,2]
[363677733,1748811039182,-500.0,0.00016433,2]
[363677734,1748811039192,-1663.77,0.00016436,2]
[363677735,1748811039202,-1663.77,0.00016436,2]
[363677736,1748811039213,-1663.77,0.00016436,2]
[363677737,1748811039223,-1663.77,0.00016436,2]
[363677738,1748811039233,-1663.77,0.00016437,2]
[363677739,1748811039243,-430.0,0.00016438,2]
[363677740,1748811039252,-430.0,0.00016438,2]
[363677741,1748811039262,-430.0,0.00016438,2]
[363677742,1748811039275,-430.0,0.00016438,2]
[363677743,1748811039285,-430.0,0.00016438,2]
[363677744,1748811039296,-468.82072898,0.00016438,2]
[363677745,1748811039308,-402.50335051,0.00016438,2]
[363677746,1748811039319,-430.0,0.00016438,2]
[363677747,1748811039329,-427.91722645,0.00016438,2]
[363677748,1748811039339,-430.0,0.00016438,2]
[363677749,1748811039349,-430.0,0.00016438,2]
[363677750,1748811039360,-430.0,0.00016438,2]
[363677751,1748811039371,-430.0,0.00016438,2]
[363677752,1748811039382,-430.0,0.00016438,2]
[363677753,1748811039392,-430.0,0.00016438,2]
[363677754,1748811039402,-430.0,0.00016438,2]
[363677755,1748811039412,-430.0,0.00016438,2]
[363677756,1748811039425,-430.0,0.00016438,2]
[363677757,1748811039435,-430.0,0.00016438,2]
[363677758,1748811039445,-430.0,0.00016438,2]
[363677759,1748811039455,-430.0,0.00016438,2]
[363677760,1748811039465,-430.0,0.00016438,2]
[363677761,1748811039476,-430.0,0.00016438,2]
[363677762,1748811039488,-307.74329638,0.00016438,2]
[363677763,1748811039498,-430.0,0.00016438,2]
[363677764,1748811039508,-430.0,0.00016438,2]
[363677765,1748811039518,-430.0,0.00016438,2]
[363677766,1748811039528,-430.0,0.00016438,2]
[363677767,1748811039538,-430.0,0.00016438,2]
[363677768,1748811039548,-462.96306544,0.00016438,2]
[363677769,1748811039558,-430.0,0.00016438,2]
[363677770,1748811039568,-430.0,0.00016438,2]
[363677771,1748811039578,-430.0,0.00016438,2]
[363677772,1748811039588,-430.0,0.00016438,2]
[363677773,1748811039598,-430.0,0.00016438,2]
[363677774,1748811039607,-430.0,0.00016438,2]
[363677775,1748811039617,-448.05,0.00016438,2]
[363677776,1748811039627,-159.4109647,0.00016438,2]
[363677777,1748811039637,-430.0,0.00016438,2]
[363677778,1748811039646,-430.0,0.00016438,2]
[363677779,1748811039656,-430.0,0.00016438,2]
[363677780,1748811039666,-770.26,0.00016438,2]
[363677781,1748811039676,-430.0,0.00016438,2]
[363677782,1748811039689,-547.5,0.00016438,2]
[363677783,1748811039699,-430.0,0.00016438,2]
[363677784,1748811039711,-587.54,0.00016438,2]
[363677785,1748811039722,-430.0,0.00016438,2]
[363677786,1748811039733,-430.0,0.00016438,2]
[363677787,1748811039743,-467.51,0.00016438,2]
[363677788,1748811039754,-430.0,0.00016438,2]
[363677789,1748811039765,-745.13,0.00016438,2]
[363677790,1748811039933,-633.83,0.00016438,2]
[363677791,1748811039943,-244.12,0.00016712,2]
[363677792,1748811039953,-430.0,0.00016712,2]
[363677793,1748811039963,-430.0,0.00016712,2]
[363677794,1748811039972,-430.0,0.00016712,2]
[363677795,1748811039982,-430.0,0.00016712,2]
[363677796,1748811039992,-430.0,0.00016712,2]
[363677797,1748811040001,-430.0,0.00016712,2]
[363677798,1748811040011,-448.05,0.00016712,2]
[363677799,1748811040020,-430.0,0.00016712,2]
[363677800,1748811040030,-430.0,0.00016712,2]
[363677801,1748811040040,-430.0,0.00016712,2]
[363677802,1748811040049,-770.26,0.00016712,2]
[363677803,1748811040059,-430.0,0.00016712,2]
[363677804,1748811040068,-547.5,0.00016712,2]
[363677805,1748811040078,-430.0,0.00016712,2]
[363677806,1748811040088,-587.54,0.00016712,2]
[363677807,1748811040097,-430.0,0.00016712,2]
[363677808,1748811040107,-430.0,0.00016712,2]